bitfinex/quotes_ETHUSD_20240729
["timestamp","ask_amount","ask_price","bid_price","bid_amount"]
[1722267216204,0.03012577,3299.2,3298.8,0.2606351]
[1722267216425,0.03012577,3299.2,3298.6,2.36940964]
[1722267216610,3.596,3298.9,3298.6,2.36940964]
[1722267216943,0.03012577,3298.8,3298.6,2.36940964]
[1722267217935,0.03012577,3298.8,3298.6,0.03400964]
[1722267218137,0.03012577,3298.8,3298.7,2.4461]
[1722267218470,3.596,3298.9,3298.7,2.69411096]
[1722267219210,3.596,3298.9,3298.7,2.4461]
[1722267222563,3.03149,3298.7,3298.6,0.03400964]
[1722267222776,6.09310577,3298.7,3298.6,0.03400964]
[1722267222921,6.09310577,3298.7,3296.7,3.1812884]
[1722267222922,3.596,3298.5,3296.9,2.4034]
[1722267223120,1.84712577,3298.7,3297.0,0.24034]
[1722267223121,3.596,3297.6,3297.0,0.24034]
[1722267225028,3.596,3297.6,3296.9,2.4034]
[1722267225868,0.03012577,3297.5,3296.9,2.4034]
[1722267226961,3.596,3297.2,3296.9,2.4034]
[1722267228223,3.596,3297.6,3296.9,2.4034]
[1722267228423,0.03012577,3297.5,3296.9,2.4034]
[1722267228671,0.03012577,3297.5,3296.9,2.65853984]
[1722267228823,3.596,3297.6,3296.9,2.65853984]
[1722267229596,0.03012577,3297.5,3296.9,2.65853984]
[1722267229730,0.03012577,3297.5,3296.9,2.4034]
[1722267231176,3.596,3297.6,3296.9,2.4034]
[1722267231326,0.03012577,3297.5,3296.9,2.4034]
[1722267232072,3.596,3297.2,3296.7,0.1479984]
[1722267232268,3.62612577,3297.2,3296.7,0.1479984]
[1722267232482,3.596,3297.2,3296.7,0.1479984]
[1722267232642,0.03012577,3297.1,3296.7,0.1479984]
[1722267233349,3.596,3297.2,3296.7,0.1479984]
[1722267234138,0.03012577,3297.1,3296.7,0.1479984]
[1722267234347,3.596,3297.2,3296.7,0.1479984]
[1722267235382,3.596,3297.6,3296.8,2.4401]
[1722267235676,3.596,3297.6,3297.0,3.03303]
[1722267235879,3.596,3297.6,3297.1,0.06056811]
[1722267236044,3.596,3297.6,3297.1,3.09347811]
[1722267236246,3.596,3298.0,3297.2,0.30934781]
[1722267236448,3.596,3298.0,3297.3,0.06056443]
[1722267237368,3.596,3298.0,3297.1,0.06056443]
[1722267237678,3.596,3298.0,3296.9,6.32499984]
[1722267237847,3.596,3297.6,3296.8,2.4401]
[1722267238056,0.03012577,3297.5,3296.8,2.4401]
[1722267238378,3.596,3297.6,3296.8,2.4401]
[1722267238580,0.03012577,3297.5,3296.8,2.4401]
[1722267239234,3.596,3297.6,3296.8,2.69890984]
[1722267239677,0.03012577,3297.5,3296.8,2.69890984]
[1722267240249,0.03012577,3297.5,3296.8,2.4401]
[1722267240840,3.596,3297.2,3296.8,2.4401]
[1722267241039,3.596,3298.0,3296.9,3.03314]
[1722267241294,3.596,3298.0,3296.8,2.4401]
[1722267241295,0.03012577,3297.9,3296.8,2.4401]
[1722267241576,3.596,3297.6,3296.8,2.4401]
[1722267241965,3.596,3297.6,3296.8,2.69890984]
[1722267242176,3.596,3298.0,3296.9,3.03313]
[1722267242476,3.596,3298.8,3297.9,2.3433]
[1722267242785,3.596,3298.4,3298.0,0.06062704]
[1722267242999,0.03012577,3298.3,3297.9,2.3433]
[1722267243154,3.596,3298.0,3296.6,3.03339]
[1722267243353,3.596,3298.4,3297.8,5.37561]
[1722267243579,3.596,3298.4,3297.9,0.06063517]
[1722267243766,3.596,3298.4,3297.8,2.3433]
[1722267243935,3.596,3298.4,3297.9,0.05012185]
[1722267244159,3.596,3298.4,3297.8,2.3433]
[1722267244357,3.596,3298.4,3297.9,0.03041544]
[1722267244904,3.596,3298.4,3297.9,0.06063488]
[1722267245572,3.596,3298.4,3297.8,2.3433]
[1722267245885,3.0313,3299.0,3297.4,2.3941]
[1722267245886,3.596,3298.0,3297.4,2.3941]
[1722267246406,3.596,3297.6,3296.9,2.58478082]
[1722267246875,0.03012577,3297.5,3296.9,2.3941]
[1722267247407,3.596,3297.6,3296.9,2.3941]
[1722267248114,3.596,3297.6,3297.0,0.01655908]
[1722267248258,3.596,3297.6,3297.0,0.06065033]
[1722267249108,3.596,3298.0,3297.0,3.09365033]
[1722267249395,3.596,3298.0,3297.1,0.54877503]
[1722267249549,3.596,3298.0,3297.2,0.06064493]
[1722267249979,3.596,3297.6,3297.1,0.54877503]
[1722267250194,3.596,3297.6,3296.9,2.3941]
[1722267250767,3.596,3297.6,3296.9,5.42723]
[1722267251153,3.596,3297.6,3296.9,2.3941]
[1722267251354,3.596,3298.0,3297.1,3.0329]
[1722267251602,3.596,3298.0,3297.2,0.30329]
[1722267251754,3.596,3298.0,3297.0,3.03305]
[1722267251954,3.596,3297.6,3296.7,0.1479984]
[1722267252157,0.03012577,3297.5,3296.7,0.1479984]
[1722267252419,3.596,3297.2,3296.7,0.1479984]
[1722267253687,0.03012577,3297.1,3296.7,0.1479984]
[1722267254013,3.596,3297.2,3296.7,0.1479984]
[1722267254958,3.9556,3297.2,3296.7,0.1479984]
[1722267255945,0.03012577,3297.3,3296.7,0.1479984]
[1722267255946,2.05485485,3297.9,3296.7,0.1479984]
[1722267256103,0.03012577,3297.8,3296.8,2.4731]
[1722267256304,0.03012577,3297.9,3296.9,0.06064917]
[1722267256510,3.596,3298.0,3297.0,0.25337492]
[1722267256695,3.596,3297.6,3297.0,0.25337492]
[1722267257800,3.596,3297.6,3297.1,0.06064973]
[1722267258200,0.03012577,3298.2,3297.2,0.06064706]
[1722267258201,3.596,3298.0,3297.2,0.06064706]
[1722267258404,3.596,3298.0,3297.2,3.09350706]
[1722267258614,3.596,3298.0,3297.3,0.30935071]
[1722267258930,3.596,3297.6,3296.8,2.4731]
[1722267259238,3.596,3297.6,3296.9,3.09379235]
[1722267259397,3.596,3297.6,3297.0,0.55]
[1722267259728,3.596,3297.6,3297.1,0.06064911]
[1722267259940,3.596,3298.0,3297.2,3.03287]
[1722267260099,3.596,3298.0,3297.3,0.36999429]
[1722267260292,3.596,3298.0,3297.0,3.033]
[1722267260625,3.03154,3298.7,3296.8,2.4731]
[1722267260626,3.596,3297.6,3296.8,2.4731]
[1722267260842,3.596,3297.6,3296.8,5.4731]
[1722267261012,3.596,3297.6,3296.9,0.06064948]
[1722267262106,3.596,3298.0,3297.2,3.03285]
[1722267262438,3.596,3298.0,3297.3,0.36392759]
[1722267262789,3.596,3298.0,3297.4,2.4979]
[1722267262990,5.25269874,3299.0,3297.4,2.4979]
[1722267262991,3.596,3298.4,3297.7,3.03236]
[1722267263244,3.596,3298.8,3297.9,2.4979]
[1722267263544,3.596,3298.8,3298.0,0.06062981]
[1722267263832,4.93495035,3299.4,3297.4,2.4601]
[1722267263833,3.596,3298.4,3297.4,2.4601]
[1722267264050,3.596,3298.0,3297.4,2.4601]
[1722267264390,3.596,3297.6,3296.9,2.4601]
[1722267264839,3.596,3297.6,3296.9,5.49323]
[1722267265197,3.596,3297.6,3296.9,2.4601]
[1722267265392,3.06198577,3298.3,3296.9,2.4601]
[1722267265393,3.596,3298.0,3296.9,2.4601]
[1722267265810,3.596,3298.0,3297.2,3.03281]
[1722267266145,3.596,3298.0,3297.0,3.58298]
[1722267266432,3.596,3298.0,3296.9,2.4601]
[1722267266589,3.596,3298.0,3296.9,5.49319]
[1722267266792,3.596,3298.0,3297.0,3.033]
[1722267267433,2.549,3297.7,3297.0,3.033]
[1722267267639,2.549,3297.7,3296.9,2.4601]
[1722267267843,3.03197,3298.2,3296.9,2.4601]
[1722267267844,2.549,3297.3,3296.9,2.4601]
[1722267268758,2.549,3297.3,3296.7,0.1479984]
[1722267268897,2.8039,3297.3,3296.7,0.1479984]
[1722267269294,2.8039,3297.3,3296.8,0.06065402]
[1722267269495,2.8039,3297.3,3296.7,0.20865242]
[1722267270519,2.8039,3297.3,3296.7,0.1479984]
[1722267270845,2.549,3297.3,3296.8,0.06065955]
[1722267271047,1.90797441,3298.0,3296.9,2.4944]
[1722267271212,2.549,3297.8,3296.9,2.4944]
[1722267271410,2.549,3297.8,3297.0,0.0502844]
[1722267271942,2.549,3297.8,3297.0,3.0833044]
[1722267272148,2.549,3297.8,3297.2,3.03284]
[1722267272306,2.549,3297.8,3297.0,3.03298]
[1722267272705,2.549,3297.8,3297.2,3.03281]
[1722267273024,2.549,3297.8,3297.3,3.40033176]
[1722267273497,2.549,3297.8,3297.3,0.30912412]
[1722267274442,2.549,3297.8,3297.0,6.06599]
[1722267274610,2.549,3297.8,3296.9,2.75863984]
[1722267274967,2.549,3297.8,3297.0,3.03299]
[1722267275388,2.549,3297.8,3296.9,2.75863984]
[1722267275570,1.93779925,3298.3,3296.9,2.4944]
[1722267275571,2.549,3297.4,3296.9,2.4944]
[1722267276880,2.549,3297.4,3296.7,0.1479984]
[1722267277678,2.549,3297.4,3296.7,3.1812784]
[1722267277914,2.549,3297.4,3296.8,0.86959684]
[1722267278874,2.549,3297.4,3296.7,0.1479984]
[1722267279089,2.549,3297.0,3296.7,0.20855619]
[1722267279376,2.549,3297.0,3296.8,0.06065949]
[1722267279873,2.549,3297.4,3296.8,0.06065949]
[1722267280032,2.549,3297.4,3296.8,3.09388949]
[1722267280239,2.549,3297.4,3296.9,0.32418879]
[1722267280465,2.549,3297.4,3296.7,0.1479984]
[1722267280466,2.549,3297.8,3297.1,3.03291]
[1722267280666,2.549,3298.2,3297.5,5.34684]
[1722267280880,2.549,3298.2,3297.6,0.06063629]
[1722267281038,2.549,3298.2,3297.6,3.09312629]
[1722267281267,2.549,3298.2,3297.7,3.03241]
[1722267281462,2.549,3298.2,3297.8,0.36994313]
[1722267281698,2.549,3298.2,3297.0,2.3143]
[1722267281875,2.549,3297.8,3297.0,2.3143]
[1722267282379,2.549,3297.4,3297.0,2.3143]
[1722267282560,2.549,3297.4,3297.1,0.06065241]
[1722267282750,2.549,3297.8,3297.1,0.60145765]
[1722267282958,2.549,3297.8,3297.0,2.3143]
[1722267283263,2.549,3297.8,3297.1,0.06020371]
[1722267284163,2.549,3297.8,3296.8,3.03322]
[1722267284524,2.549,3297.8,3296.9,3.03314]
[1722267284990,2.549,3297.8,3296.7,0.1479984]
[1722267285135,2.549,3297.8,3296.9,3.03315]
[1722267285336,2.549,3297.8,3297.0,3.033]
[1722267285538,2.549,3297.8,3297.1,3.03296]
[1722267285744,2.549,3297.8,3297.3,3.03276]
[1722267286045,2.549,3298.2,3297.4,2.4491]
[1722267286254,2.549,3297.8,3296.8,0.24478984]
[1722267286552,2.549,3297.8,3296.8,6.27797984]
[1722267287258,2.549,3297.8,3296.9,3.03314]
[1722267287614,2.549,3297.8,3296.8,3.27797984]
[1722267287820,2.549,3297.8,3296.9,0.57441782]
[1722267288119,2.549,3297.8,3297.4,6.06531]
[1722267288317,2.549,3298.2,3296.9,3.03313]
[1722267288631,2.549,3298.2,3297.5,3.03254]
[1722267288835,2.549,3298.2,3297.8,3.03227]
[1722267289052,2.549,3299.0,3298.2,3.03193]
[1722267289281,2.549,3299.0,3298.4,3.0317]
[1722267289464,2.549,3299.0,3298.5,0.06054065]
[1722267289835,2.549,3299.0,3298.4,3.0317]
[1722267289836,2.549,3299.0,3298.2,3.0319]
[1722267290051,2.549,3299.0,3298.3,3.33496]
[1722267290384,13.03035,3300.0,3298.3,2.63679]
[1722267290385,12.60586116,3300.0,3298.3,2.63679]
[1722267290556,2.549,3299.4,3298.7,3.03142]
[1722267290891,2.549,3299.4,3298.8,3.0314]
[1722267291094,2.549,3299.4,3298.7,0.606301]
[1722267291538,2.549,3299.4,3298.8,0.02082836]
[1722267291740,2.549,3299.0,3298.3,2.3336]
[1722267291953,2.549,3299.0,3298.5,3.03161]
[1722267292443,2.549,3299.0,3298.8,3.03132]
[1722267292638,2.549,3299.0,3298.8,3.06975321]
[1722267292979,2.549,3299.0,3298.8,3.67988453]
[1722267293184,2.549,3299.4,3299.1,3.03112]
[1722267293382,2.549,3299.8,3299.2,0.05127428]
[1722267293681,10.0,3300.0,3299.6,3.03066]
[1722267293981,10.0,3300.0,3299.7,0.05256854]
[1722267294276,10.0,3300.0,3299.6,0.303066]
[1722267294482,10.0,3300.0,3299.7,3.03051]
[1722267294688,10.0,3300.0,3299.9,3.03039]
[1722267295183,10.0,3300.0,3299.9,5.43709]
[1722267295699,5.0001,3300.0,3299.9,9.01748]
[1722267295851,5.0001,3300.0,3299.9,12.04787]
[1722267296237,5.0001,3300.0,3299.9,15.04787]
[1722267296477,5.0001,3300.0,3299.9,12.01748]
[1722267296697,5.0001,3300.0,3299.9,5.43709]
[1722267297058,5.0001,3300.0,3299.5,3.03075]
[1722267297400,5.0001,3300.0,3299.4,3.06]
[1722267297559,5.0001,3300.0,3299.5,3.58069]
[1722267297756,5.0001,3300.0,3299.4,3.06]
[1722267298385,5.0001,3300.0,3299.7,3.03057]
[1722267298543,5.0001,3300.0,3299.6,3.03066]
[1722267298738,5.0001,3300.0,3299.4,3.06]
[1722267298739,5.0001,3300.0,3299.4,6.09084]
[1722267298940,5.0001,3300.0,3299.4,3.06]
[1722267299253,5.0001,3300.0,3299.9,3.03039]
[1722267300290,5.0001,3300.0,3299.9,6.06078]
[1722267300443,5.0001,3300.0,3299.9,3.03039]
[1722267300754,5.0001,3300.0,3299.9,11.36767]
[1722267300958,4.36750474,3300.0,3299.9,14.91767]
[1722267301343,3.5324505,3300.0,3299.9,17.94806]
[1722267301545,2.549,3301.7,3301.2,3.02911]
[1722267301856,2.549,3301.7,3301.0,3.02933]
[1722267302250,2.549,3302.1,3301.4,3.02897]
[1722267302662,2.4024,3302.6,3301.5,3.02885]
[1722267302874,2.549,3302.3,3301.8,3.02864]
[1722267303049,2.549,3302.3,3301.6,3.02882]
[1722267303050,2.549,3302.3,3301.9,0.06052802]
[1722267303248,2.549,3302.7,3301.9,3.0285]
[1722267303483,2.549,3302.7,3302.0,3.0284]
[1722267303787,2.549,3302.7,3302.1,3.02834]
[1722267303957,2.549,3302.7,3302.2,3.02828]
[1722267304158,2.549,3302.7,3302.3,0.06055537]
[1722267304346,2.549,3302.7,3301.7,2.4216]
[1722267304552,2.8039,3302.7,3301.8,0.55]
[1722267305285,2.8039,3302.7,3301.2,2.368]
[1722267305286,3.602,3302.1,3301.2,2.368]
[1722267305456,3.602,3302.1,3301.0,3.02931]
[1722267305657,3.9622,3302.1,3301.0,0.605884]
[1722267305859,3.9622,3302.1,3300.7,2.368]
[1722267306057,3.602,3302.5,3301.5,3.02885]
[1722267306244,3.602,3302.1,3300.7,2.368]
[1722267306453,3.602,3302.1,3300.9,3.02939]
[1722267306784,3.602,3302.1,3300.7,2.368]
[1722267307102,3.602,3301.7,3300.6,3.05]
[1722267307258,0.3602,3301.6,3300.8,3.02956]
[1722267307604,3.602,3301.7,3300.8,3.02956]
[1722267307805,3.602,3301.7,3300.9,0.06057635]
[1722267307988,3.602,3302.1,3301.0,3.02932]
[1722267308160,3.602,3302.1,3301.2,5.27953]
[1722267308368,3.02717,3303.5,3301.3,0.53401023]
[1722267308369,3.602,3303.0,3301.3,0.53401023]
[1722267308683,3.602,3303.0,3301.8,3.02864]
[1722267308923,3.602,3303.0,3301.7,3.02874]
[1722267308924,3.602,3303.0,3302.0,3.02843]
[1722267309339,3.602,3303.0,3302.2,3.02821]
[1722267309540,3.602,3303.4,3302.2,3.02821]
[1722267309843,3.602,3303.4,3302.3,3.57819]
[1722267309844,0.3602,3303.3,3302.3,3.57819]
[1722267310019,0.3602,3303.3,3302.4,0.06049008]
[1722267310345,0.3602,3303.3,3302.6,3.0279]
[1722267310545,3.602,3303.4,3302.7,0.06054335]
[1722267310708,3.977,3303.8,3302.8,3.08824318]
[1722267311051,3.602,3303.4,3302.8,3.08824318]
[1722267311202,0.375,3303.8,3303.0,3.02751]
[1722267311203,3.977,3303.8,3303.0,3.02751]
[1722267311407,3.977,3303.8,3303.2,3.02733]
[1722267311408,0.375,3303.8,3303.2,3.02733]
[1722267311604,3.602,3303.4,3302.5,3.02795]
[1722267311817,3.602,3303.4,3302.6,3.852795]
[1722267312015,3.602,3303.4,3302.2,0.582861]
[1722267312016,3.602,3303.0,3302.2,0.582861]
[1722267312222,3.602,3303.0,3302.3,3.02813]
[1722267312475,3.602,3303.0,3302.2,0.582861]
[1722267312603,3.602,3303.0,3302.3,0.55]
[1722267312918,3.602,3302.6,3302.0,3.05]
[1722267313550,3.602,3303.1,3302.0,3.05]
[1722267313702,3.602,3303.1,3302.1,3.02829]
[1722267313901,3.602,3303.1,3301.7,3.0]
[1722267313902,3.602,3303.1,3302.2,0.302829]
[1722267314145,3.602,3302.7,3301.7,3.0]
[1722267314359,3.602,3302.7,3301.8,3.02864]
[1722267314517,3.602,3302.7,3301.9,0.55]
[1722267314721,3.602,3302.3,3301.6,2.4017]
[1722267314918,3.602,3302.3,3300.7,1.5]
[1722267314919,3.602,3302.3,3301.3,3.02909]
[1722267315161,3.602,3302.3,3301.4,3.02894]
[1722267315305,3.602,3302.3,3301.5,3.02889]
[1722267315510,3.602,3302.7,3301.6,3.02879]
[1722267315712,3.602,3302.7,3301.9,3.02855]
[1722267316012,3.602,3302.7,3301.8,3.02864]
[1722267316347,3.602,3302.7,3301.9,3.02849]
[1722267316580,3.602,3302.7,3302.1,3.0283]
[1722267316720,3.602,3302.7,3302.2,0.06037255]
[1722267316927,3.602,3303.5,3302.5,3.02795]
[1722267317165,3.602,3303.5,3302.3,0.06055287]
[1722267317166,0.375,3303.8,3302.6,0.06054168]
[1722267317379,0.375,3303.8,3302.9,3.02757]
[1722267317671,0.375,3303.8,3303.0,3.57747]
[1722267317826,0.375,3303.8,3303.0,3.935247]
[1722267318023,0.375,3303.8,3303.0,0.907747]
[1722267318225,0.375,3303.8,3303.5,3.02709]
[1722267318431,0.375,3303.8,3303.4,3.0271]
[1722267318662,0.375,3303.8,3303.5,3.08761534]
[1722267318845,0.375,3303.8,3303.4,0.55]
[1722267319056,0.375,3303.8,3303.4,3.02709]
[1722267319258,0.375,3303.8,3303.3,0.55]
[1722267319259,0.375,3303.8,3303.5,0.357709]
[1722267319488,0.375,3303.8,3303.3,0.55]
[1722267319489,0.375,3303.8,3303.6,0.55]
[1722267319799,0.375,3303.8,3302.4,5.29686]
[1722267320101,3.602,3303.5,3302.7,6.57776]
[1722267320250,3.602,3303.5,3302.8,3.02767]
[1722267320444,3.602,3303.5,3302.9,1.510543]
[1722267320694,3.602,3303.5,3302.7,3.55]
[1722267320865,3.602,3303.5,3302.9,3.02762]
[1722267321270,3.602,3303.5,3302.8,3.02765]
[1722267321271,0.375,3303.8,3303.3,3.02727]
[1722267321500,0.375,3303.8,3302.7,6.57779]
[1722267321501,0.375,3303.8,3303.4,0.55]
[1722267321872,0.375,3303.8,3303.1,0.55]
[1722267322066,0.375,3303.8,3303.2,0.357751]
[1722267322262,0.375,3303.8,3303.3,0.55]
[1722267322663,3.602,3304.3,3303.4,3.02711]
[1722267323004,3.602,3303.9,3303.3,0.55]
[1722267323302,3.602,3303.9,3303.1,0.55]
[1722267323464,3.602,3303.9,3303.2,0.355]
[1722267323805,3.602,3303.9,3303.3,0.55]
[1722267323961,3.602,3303.9,3303.0,3.0]
[1722267324307,3.602,3303.9,3302.9,6.05518]
[1722267324469,3.602,3303.9,3303.1,3.02738]
[1722267324794,3.602,3303.9,3302.9,3.02759]
[1722267324795,3.602,3303.9,3302.9,3.02756]
[1722267324995,3.602,3303.9,3303.0,3.330296]
[1722267325300,3.602,3303.9,3303.0,0.302756]
[1722267325508,3.602,3303.9,3302.6,3.0]
[1722267325715,3.602,3303.1,3302.0,3.02843]
[1722267325914,3.602,3302.7,3302.0,3.02843]
[1722267326064,3.602,3302.7,3301.9,5.3976]
[1722267326411,3.602,3302.7,3301.9,3.05]
[1722267327720,3.602,3303.1,3302.3,3.02813]
[1722267327890,3.602,3303.1,3301.9,3.05]
[1722267327891,3.602,3303.1,3302.4,0.64218783]
[1722267328110,3.602,3302.7,3301.9,3.05]
[1722267328257,3.602,3302.7,3302.0,3.02845]
[1722267328461,3.602,3302.7,3302.1,3.57835]
[1722267328904,3.602,3302.7,3302.1,0.55]
[1722267329115,3.602,3302.7,3302.0,0.55]
[1722267329269,3.602,3303.5,3302.5,3.02799]
[1722267329469,3.602,3303.5,3302.1,0.36]
[1722267329470,3.602,3303.5,3302.3,3.02812]
[1722267329711,3.602,3303.5,3302.4,3.57808]
[1722267329912,3.602,3303.5,3302.5,3.028]
[1722267330127,3.602,3303.5,3302.8,3.02767]
[1722267330275,3.602,3303.5,3302.9,0.03165514]
[1722267330612,3.602,3303.5,3302.1,0.36]
[1722267330613,3.602,3303.1,3302.1,0.36]
[1722267330798,3.602,3303.1,3302.2,0.55]
[1722267330998,3.602,3303.1,3302.3,3.421967]
[1722267331199,3.602,3303.1,3302.4,3.57808]
[1722267331401,3.602,3303.1,3302.3,0.393837]
[1722267331793,3.602,3303.1,3302.3,3.421957]
[1722267332403,3.602,3303.1,3302.4,0.55]
[1722267332914,3.602,3303.5,3302.5,3.4251307]
[1722267333098,3.602,3303.5,3302.6,0.60844442]
[1722267333099,0.07170899,3303.0,3302.6,0.60844442]
[1722267333305,3.602,3303.5,3302.6,0.60844442]
[1722267333306,3.602,3303.5,3302.6,3.63633442]
[1722267333487,0.07183106,3302.9,3302.7,3.02781]
[1722267333688,3.602,3303.5,3302.8,3.44975632]
[1722267334080,3.602,3303.5,3302.9,3.57757]
[1722267334277,2.2862,3304.2,3303.1,3.02745]
[1722267334278,3.602,3303.9,3303.1,3.02745]
[1722267334512,0.07191582,3303.4,3303.2,0.05844626]
[1722267334677,3.602,3303.9,3303.2,0.05844626]
[1722267334678,3.602,3303.9,3303.3,0.30858163]
[1722267334873,0.07200875,3303.3,3303.0,3.02747]
[1722267335116,3.602,3303.9,3303.1,0.55]
[1722267335324,3.602,3303.9,3302.8,5.77099544]
[1722267335478,0.07223612,3303.8,3303.0,3.02748]
[1722267335677,0.07223612,3303.8,3303.1,0.4181889]
[1722267335916,0.07223612,3303.8,3303.1,3.4455589]
[1722267336225,3.602,3303.9,3303.3,3.02726]
[1722267336428,3.602,3304.3,3303.6,3.02697]
[1722267336580,0.07246387,3303.8,3303.7,0.852697]
[1722267336779,3.602,3304.3,3303.7,0.55]
[1722267336978,3.602,3304.3,3303.4,0.55]
[1722267337212,0.07030675,3304.2,3303.5,3.02702]
[1722267337426,0.07030675,3304.2,3303.7,3.02689]
[1722267337716,2.4434,3304.7,3303.8,0.55]
[1722267337902,3.602,3304.6,3303.8,0.55]
[1722267338105,3.67088893,3304.6,3303.9,0.357689]
[1722267338505,3.67088893,3304.6,3303.8,0.55]
[1722267338708,3.602,3304.2,3303.6,0.302702]
[1722267338909,3.602,3304.2,3303.4,3.02717]
[1722267339137,0.06888685,3304.1,3303.6,3.02694]
[1722267339345,0.06888685,3304.1,3303.7,3.02684]
[1722267339549,0.06888685,3304.1,3303.8,3.57681]
[1722267339854,0.06888685,3304.1,3303.5,3.02707]
[1722267340024,0.06888685,3304.1,3303.7,3.0269]
[1722267340237,0.06888685,3304.1,3303.8,0.55]
[1722267340638,0.06888685,3304.1,3303.8,3.02679]
[1722267341025,3.602,3304.6,3303.9,0.55]
[1722267341560,0.06669917,3304.5,3303.9,0.55]
[1722267341713,0.06669917,3304.5,3303.9,3.57672]
[1722267342019,0.06669917,3304.5,3304.1,3.02652]
[1722267342550,3.602,3305.0,3304.2,3.02644]
[1722267342777,0.06208122,3304.4,3304.2,3.57644]
[1722267342954,3.602,3305.0,3304.2,0.357644]
[1722267343110,0.0620247,3304.3,3303.7,5.3141]
[1722267343316,3.602,3304.6,3303.8,3.57681]
[1722267343621,0.06209272,3304.2,3303.8,3.57681]
[1722267343829,3.602,3304.6,3303.9,3.02665]
[1722267344062,3.602,3304.6,3304.1,3.02651]
[1722267344242,0.06210936,3304.5,3304.2,0.55]
[1722267344450,0.06210936,3304.5,3304.0,0.907665]
[1722267344622,0.06210936,3304.5,3304.0,0.55]
[1722267345024,3.602,3304.6,3304.0,0.55]
[1722267345544,0.06212223,3304.5,3303.7,2.2872]
[1722267345721,0.06212223,3304.5,3303.8,0.55]
[1722267345913,0.06212223,3304.5,3303.3,6.02722]
[1722267346231,0.06212223,3304.5,3303.6,3.02699]
[1722267346589,0.06212223,3304.5,3303.4,0.847732]
[1722267347111,3.602,3304.2,3303.4,0.847732]
[1722267347343,3.602,3304.2,3303.0,3.02753]
[1722267347618,0.06207855,3304.1,3303.2,0.55]
[1722267348129,0.06207855,3304.1,3303.4,3.02713]
[1722267348322,3.602,3304.2,3303.5,0.55]
[1722267348725,0.06189769,3304.1,3303.5,0.55]
[1722267348930,0.06189769,3304.1,3303.5,0.357726]
[1722267349142,0.06189769,3304.1,3303.1,3.385118]
[1722267349467,0.06189769,3304.1,3303.1,0.357748]
[1722267349758,0.0618886,3304.0,3303.2,0.55]
[1722267349914,3.602,3304.2,3303.2,0.55]
[1722267350258,3.602,3303.8,3303.2,0.55]
[1722267350570,0.05955262,3303.7,3303.2,0.55]
[1722267350915,0.05955262,3303.7,3302.8,3.0]
[1722267351114,0.05955262,3303.7,3302.7,6.02775]
[1722267351545,0.05955262,3303.7,3302.9,3.02762]
[1722267351716,3.602,3303.8,3302.9,3.02762]
[1722267352057,0.05937092,3303.6,3303.0,0.302762]
[1722267352214,3.602,3303.8,3303.1,0.05593351]
[1722267352215,0.05941639,3303.7,3303.1,0.05593351]
[1722267352413,3.602,3303.8,3303.1,0.05593351]
[1722267352654,3.602,3303.8,3303.1,3.08338351]
[1722267352874,0.05939862,3303.7,3303.2,3.36591455]
[1722267353023,0.05939862,3303.7,3303.3,0.60661623]
[1722267353230,3.602,3303.8,3303.3,0.60661623]
[1722267353231,2.698,3303.8,3303.3,0.60661623]
[1722267353644,0.05939287,3303.7,3303.3,0.60661623]
[1722267353864,0.05939287,3303.7,3303.3,0.55]
[1722267354015,2.698,3303.8,3303.4,0.39159446]
[1722267354253,0.05934918,3303.6,3303.4,0.39159446]
[1722267354446,2.698,3303.8,3303.0,0.302762]
[1722267354705,0.0756656,3304.3,3302.6,3.02785]
[1722267354706,2.698,3303.3,3302.6,3.02785]
[1722267355050,2.698,3303.3,3302.4,3.02806]
[1722267355250,2.698,3303.3,3302.5,3.0]
[1722267355494,0.0593601,3303.2,3302.5,3.0]
[1722267355688,0.0593601,3303.2,3302.3,6.02813]
[1722267355878,0.0593601,3303.2,3302.4,0.905635]
[1722267356195,2.698,3302.9,3302.4,0.905635]
[1722267356403,2.698,3302.9,3301.9,5.52652]
[1722267356552,0.05917007,3302.8,3302.0,3.02846]
[1722267357063,0.05917007,3302.8,3301.9,2.498]
[1722267357064,2.698,3302.5,3301.9,2.498]
[1722267357402,0.05917007,3302.8,3302.0,0.5548]
[1722267357403,2.698,3302.1,3302.0,0.5548]
[1722267357755,0.05874825,3302.1,3302.0,0.5548]
[1722267357952,0.05874825,3302.1,3302.0,0.61535618]
[1722267357953,2.698,3302.1,3302.0,0.61535618]
[1722267358204,2.698,3302.1,3301.5,0.06056324]
[1722267358205,2.75611217,3302.1,3301.5,0.06056324]
[1722267358750,2.75611217,3302.1,3301.2,3.02911]
[1722267358994,2.75611217,3302.1,3301.4,3.02894]
[1722267359229,0.05811217,3302.1,3301.1,4.52924]
[1722267359442,0.05811217,3302.1,3301.8,3.02859]
[1722267359600,3.601,3302.5,3301.4,6.05794]
[1722267359942,0.05840609,3302.4,3301.5,3.0]
[1722267360228,0.05840609,3302.4,3301.6,0.602893]